bitfinex-derivatives/quotes_SOLF0:USTF0_20250803
["timestamp","ask_amount","ask_price","bid_price","bid_amount"]
[1754226289509,113.32,162.22,162.19,6.1656]
[1754226289711,3.49,162.2,162.11,5.08955566]
[1754226290213,3.49,162.2,162.12,3.47]
[1754226290816,113.32,162.22,162.12,3.47]
[1754226291016,113.32,162.22,162.19,6.1657]
[1754226291311,3.49,162.21,162.2,3.47]
[1754226291512,3.49,162.21,162.2,9.6353]
[1754226296113,113.32,162.22,162.21,6.1649]
[1754226296318,116.81,162.22,162.21,9.6349]
[1754226297119,3.49,162.26,162.21,3.47]
[1754226297316,113.22,162.25,162.21,3.47]
[1754226297515,3.49,162.24,162.21,3.47]
[1754226298013,3.49,162.24,162.23,9.6339]
[1754226300112,21.14573045,162.28,162.24,6.1637]
[1754226300312,113.18,162.27,162.15,5.08295421]
[1754226300613,3.49,162.26,162.16,3.47]
[1754226301323,3.49,162.26,162.25,9.6334]
[1754226302920,3.49,162.26,162.24,3.47]
[1754226303521,3.49,162.26,162.22,3.47]
[1754226303721,3.49,162.26,162.16,3.47]
[1754226304320,116.67,162.27,162.16,3.47]
[1754226304521,3.49,162.26,162.16,3.47]
[1754226305222,3.49,162.26,162.25,6.1634]
[1754226305824,3.49,162.26,162.25,9.6334]
[1754226308021,3.49,162.26,162.25,3.47]
[1754226308224,3.49,162.26,162.22,3.47]
[1754226308423,3.49,162.26,162.23,3.47]
[1754226309128,3.49,162.26,162.24,6.1635]
[1754226310426,3.49,162.26,162.25,6.1634]
[1754226312326,3.49,162.26,162.25,9.6334]
[1754226312527,3.49,162.26,162.25,6.1634]
[1754226313125,116.67,162.27,162.26,9.633]
[1754226315232,113.18,162.27,162.26,9.633]
[1754226317437,116.59,162.27,162.26,9.633]
[1754226317932,113.18,162.27,162.26,9.633]
[1754226318326,362.88345296,162.33,162.17,5.08295421]
[1754226318628,3.41,162.31,162.19,3.51]
[1754226319023,3.41,162.31,162.19,8.59295421]
[1754226319227,3.41,162.31,162.2,3.51]
[1754226319434,3.41,162.31,162.3,9.6714]
[1754226320127,112.96,162.32,162.31,6.1611]
[1754226320333,112.96,162.32,162.31,9.6711]
[1754226320533,3.41,162.33,162.31,3.51]
[1754226320733,3.41,162.33,162.23,3.51]
[1754226321328,3.41,162.33,162.31,6.1609]
[1754226321529,3.41,162.34,162.32,3.51]
[1754226321731,3.41,162.34,162.33,3.51]
[1754226322331,3.41,162.34,162.23,3.51]
[1754226322533,112.96,162.35,162.32,3.51]
[1754226322937,3.41,162.34,162.32,3.51]
[1754226323129,3.41,162.34,162.33,3.51]
[1754226323327,3.41,162.34,162.32,3.51]
[1754226323527,3.41,162.34,162.3,6.1614]
[1754226323734,3.41,162.34,162.31,3.51]
[1754226324036,3.41,162.34,162.23,3.51]
[1754226325038,3.41,162.34,162.3,6.1614]
[1754226325239,3.41,162.34,162.31,3.51]
[1754226326236,3.41,162.34,162.32,3.51]
[1754226327943,3.41,162.34,162.31,3.51]
[1754226328141,3.41,162.34,162.32,3.51]
[1754226328741,116.37,162.35,162.31,9.671]
[1754226328938,3.41,162.34,162.32,3.51]
[1754226329138,112.96,162.35,162.32,3.51]
[1754226329444,3.41,162.34,162.31,3.51]
[1754226329635,3.41,162.34,162.24,3.51]
[1754226330037,119.1197,162.35,162.22,166.83308853]
[1754226330240,3.41,162.34,162.23,3.51]
[1754226331240,3.41,162.33,162.23,3.51]
[1754226331745,3.41,162.32,162.28,6.162]
[1754226331944,3.41,162.32,162.29,3.51]
[1754226332246,3.41,162.31,162.28,3.51]
[1754226332546,3.41,162.31,162.23,3.51]
[1754226332745,116.33,162.31,162.23,3.51]
[1754226332941,3.41,162.3,162.23,3.51]
[1754226333245,3.41,162.3,162.25,6.1634]
[1754226333246,6.1616,162.3,162.25,6.1634]
[1754226333443,3.41,162.29,162.26,3.51]
[1754226333637,3.41,162.28,162.26,3.51]
[1754226333934,3.41,162.29,162.28,3.51]
[1754226336245,3.41,162.3,162.22,161.76045764]
[1754226336445,3.41,162.3,162.23,3.51]
[1754226337345,3.41,162.3,162.29,9.6719]
[1754226337850,3.41,162.3,162.28,3.51]
[1754226338051,3.41,162.3,162.26,3.51]
[1754226338549,3.41,162.3,162.27,3.51]
[1754226339055,3.41,162.3,162.22,161.76045764]
[1754226339243,3.41,162.3,162.28,3.51]
[1754226339544,3.41,162.3,162.27,9.6724]
[1754226339752,3.41,162.3,162.28,3.51]
[1754226342255,3.41,162.3,162.28,9.6722]
[1754226343757,3.4,162.3,162.29,9.6117]
[1754226344356,685.45332092,162.39,162.23,5.09483956]
[1754226344357,3.4,162.33,162.23,5.09483956]
[1754226344557,3.4,162.33,162.25,3.45]
[1754226344756,3.4,162.33,162.28,3.45]
[1754226344957,3.4,162.32,162.28,3.45]
[1754226345147,3.4,162.31,162.28,3.45]
[1754226345352,3.4,162.31,162.29,6.1619]
[1754226345553,3.4,162.31,162.29,3.45]
[1754226345851,3.4,162.31,162.29,9.6116]
[1754226346052,3.4,162.31,162.29,3.45]
[1754226346858,3.4,162.34,162.23,3.45]
[1754226347266,3.4,162.27,162.25,3.45]
[1754226347472,6.1624,162.28,162.25,3.45]
[1754226347659,3.4,162.26,162.25,3.45]
[1754226347861,3.4,162.29,162.25,3.45]
[1754226348360,112.98,162.3,162.25,3.45]
[1754226348561,116.38,162.3,162.25,3.45]
[1754226348865,3.4,162.29,162.26,6.163]
[1754226349061,3.4,162.29,162.27,3.45]
[1754226349968,3.4,162.29,162.23,3.45]
[1754226350667,6.162,162.29,162.23,3.45]
[1754226350870,3.4,162.28,162.23,3.45]
[1754226351072,9.5624,162.28,162.23,9.614]
[1754226351259,3.4,162.27,162.24,3.45]
[1754226351773,3.4,162.27,162.23,6.164]
[1754226352069,3.4,162.27,162.25,3.45]
[1754226353070,3.4,162.26,162.25,3.45]
[1754226354371,3.4,162.27,162.25,3.45]
[1754226357166,112.98,162.3,162.25,6.1633]
[1754226357372,3.4,162.28,162.26,3.45]
[1754226357572,112.98,162.3,162.26,3.45]
[1754226357876,3.4,162.3,162.28,3.45]
[1754226358881,3.4,162.3,162.29,3.45]
[1754226359367,3.4,162.33,162.29,6.1619]
[1754226359563,3.4,162.33,162.3,3.45]
[1754226360376,3.4,162.32,162.3,3.45]
[1754226360873,3.4,162.33,162.3,3.45]
[1754226361068,6.16,162.34,162.25,3.45]
[1754226361069,3.4,162.34,162.25,3.45]
[1754226361274,3.4,162.34,162.26,3.45]
[1754226362067,3.4,162.34,162.29,6.1617]
[1754226362270,6.16,162.34,162.29,6.1617]
[1754226362473,6.16,162.34,162.25,5.10026881]
[1754226362474,3.4,162.33,162.31,3.45]
[1754226363978,3.4,162.33,162.29,9.6116]
[1754226364180,3.4,162.33,162.3,9.6114]
[1754226364382,3.4,162.33,162.31,3.45]
[1754226365981,3.4,162.34,162.31,6.1611]
[1754226366178,685.51589701,162.39,162.25,5.10026881]
[1754226366477,3.4,162.38,162.32,6.1605]
[1754226366682,3.4,162.36,162.34,3.45]
[1754226367970,766.6804421,162.39,162.32,6.1605]
[1754226367971,3.4,162.38,162.32,3.45]
[1754226368877,3.4,162.38,162.31,6.161]
[1754226368878,3.4,162.38,162.3,9.6114]
[1754226369570,6.16,162.35,162.3,6.1614]
[1754226369884,3.4,162.34,162.31,3.45]
[1754226370072,3.4,162.33,162.31,3.45]
[1754226371170,9.5605,162.33,162.31,3.45]
[1754226371374,3.4,162.34,162.29,3.45]
[1754226372178,6.1608,162.32,162.29,3.45]
[1754226372380,3.4,162.31,162.29,3.45]
[1754226373082,6.1613,162.31,162.29,3.45]
[1754226373284,3.4,162.3,162.29,3.45]
[1754226373579,112.94,162.35,162.23,3.27]
[1754226373884,3.46,162.34,162.23,3.27]
[1754226374683,6.1618,162.3,162.26,3.27]
[1754226374983,3.46,162.27,162.26,3.27]
[1754226375185,3.46,162.29,162.26,9.433]
[1754226375386,3.46,162.28,162.27,3.27]
[1754226376385,9.6223,162.28,162.27,3.27]
[1754226376785,3.46,162.27,162.26,3.27]
[1754226377584,9.6227,162.27,162.26,3.27]
[1754226378284,9.6227,162.27,162.23,6.1641]
[1754226378584,3.46,162.25,162.22,167.92495764]
[1754226378784,3.46,162.29,162.17,112.92]
[1754226378977,6.1634,162.26,162.2,6.165]
[1754226379177,3.46,162.24,162.21,3.27]
[1754226379377,113.0,162.25,162.21,3.27]
[1754226379378,3.46,162.23,162.21,3.27]
[1754226380176,3.46,162.23,162.21,6.1649]
[1754226380383,3.46,162.25,162.22,3.27]
[1754226380581,3.46,162.24,162.17,3.27]
[1754226381281,3.46,162.23,162.21,3.27]
[1754226381685,3.46,162.23,162.2,6.1651]
[1754226381885,3.46,162.22,162.17,3.27]
[1754226382187,113.0,162.26,162.17,3.27]
[1754226382385,3.46,162.25,162.15,3.27]
[1754226383184,3.46,162.21,162.15,3.27]
[1754226383982,6.1649,162.21,162.15,3.27]
[1754226384179,113.0,162.26,162.14,5.10026881]
[1754226384180,3.46,162.25,162.14,3.27]
[1754226384783,3.46,162.22,162.16,3.27]
[1754226385577,3.46,162.2,162.17,3.27]
[1754226386493,113.06,162.24,162.17,3.27]
[1754226388282,113.06,162.24,162.2,6.165]
[1754226388691,116.52,162.24,162.21,3.27]
[1754226389096,116.52,162.24,162.21,9.4347]
[1754226389394,116.52,162.24,162.22,3.27]
[1754226391288,3.46,162.24,162.22,6.1645]
[1754226391495,3.46,162.24,162.23,3.27]
[1754226392990,3.46,162.27,162.24,3.27]
[1754226394793,3.46,162.26,162.24,3.27]
[1754226395092,3.46,162.25,162.24,3.27]
[1754226396597,3.46,162.25,162.21,6.1648]
[1754226396795,3.46,162.25,162.23,3.27]
[1754226397196,3.46,162.24,162.23,3.27]
[1754226399601,113.04,162.28,162.17,3.27]
[1754226399801,3.46,162.27,162.17,3.27]
[1754226400196,6.1642,162.23,162.19,3.27]
[1754226400392,3.46,162.21,162.19,3.27]
[1754226400700,6.1648,162.22,162.17,3.27]
[1754226400901,3.46,162.2,162.17,3.27]
[1754226401096,3.46,162.2,162.17,9.4364]
[1754226401296,3.46,162.2,162.18,3.27]
[1754226403099,3.46,162.2,162.17,3.27]
[1754226403300,3.46,162.19,162.17,3.27]
[1754226403497,3.46,162.27,162.17,3.27]
[1754226404801,6.1649,162.22,162.17,3.27]
[1754226404997,3.49,162.21,162.18,3.5]
[1754226405203,6.1649,162.22,162.18,3.5]
[1754226405496,3.49,162.2,162.18,3.5]
[1754226406901,3.49,162.23,162.19,3.5]
[1754226407302,3.49,162.22,162.19,3.5]
[1754226407806,3.49,162.22,162.19,6.1654]
[1754226407999,3.49,162.22,162.2,3.5]
[1754226409500,3.49,162.27,162.19,3.5]
[1754226410305,3.49,162.21,162.2,3.5]
[1754226410710,3.49,162.21,162.19,3.5]
[1754226412106,3.49,162.2,162.18,6.1659]
[1754226412496,3.49,162.2,162.19,3.5]
[1754226416512,3.49,162.22,162.19,3.5]
[1754226417107,3.49,162.22,162.2,3.5]
[1754226417309,3.49,162.29,162.2,3.5]
[1754226418215,6.1633,162.26,162.21,6.1649]
[1754226418512,119.85806897,162.33,162.22,3.5]
[1754226418513,3.49,162.24,162.22,3.5]
[1754226419414,3.49,162.24,162.23,3.5]
[1754226419809,9.6538,162.24,162.23,3.5]
[1754226420207,3.49,162.23,162.19,3.5]
[1754226420506,6.1641,162.24,162.2,6.165]
[1754226420813,3.49,162.22,162.21,3.5]
[1754226421313,3.49,162.23,162.21,3.5]
[1754226422821,9.6545,162.23,162.21,3.5]
[1754226423016,3.49,162.22,162.21,3.5]
[1754226423918,3.49,162.29,162.21,3.5]
[1754226424319,3.49,162.29,162.21,6.1647]
[1754226424616,3.49,162.24,162.22,3.5]
[1754226424818,3.49,162.24,162.22,9.6644]
[1754226425019,3.49,162.24,162.23,3.5]
[1754226425417,3.49,162.25,162.23,3.5]
[1754226425617,3.49,162.27,162.24,3.5]
[1754226426215,9.6527,162.27,162.24,3.5]
[1754226426616,3.49,162.26,162.24,3.5]
[1754226428621,3.49,162.25,162.23,3.5]
[1754226428926,3.49,162.26,162.23,3.5]
[1754226430223,3.49,162.26,162.23,9.6641]
[1754226430417,3.49,162.26,162.24,3.5]
[1754226430618,3.49,162.26,162.25,3.5]
[1754226436225,6.1627,162.27,162.25,3.5]
[1754226436430,3.41,162.26,162.25,3.5]
[1754226436928,9.573,162.26,162.25,3.5]
[1754226437127,9.573,162.26,162.24,3.45]
[1754226437328,3.41,162.25,162.24,3.45]
[1754226439926,3.41,162.31,162.21,3.45]
[1754226440131,3.41,162.31,162.22,3.45]
[1754226440425,3.41,162.24,162.22,3.45]
[1754226440629,3.41,162.31,162.22,3.45]
[1754226441933,3.41,162.3,162.22,3.45]
[1754226442527,6.85806897,162.31,162.22,3.45]
[1754226442528,9.5742,162.23,162.22,3.45]
[1754226443230,3.41,162.3,162.22,3.45]
[1754226444330,3.41,162.28,162.22,3.45]
[1754226444727,6.1633,162.26,162.22,9.6145]
[1754226444930,3.41,162.25,162.23,3.45]
[1754226448335,9.5735,162.25,162.23,3.45]
[1754226448538,3.41,162.24,162.21,6.1648]
[1754226449039,3.41,162.24,162.22,3.45]
[1754226449233,3.41,162.31,162.21,5.10201896]
[1754226449538,116.37,162.34,162.24,3.45]
[1754226449738,3.41,162.33,162.26,6.163]
[1754226449941,3.41,162.33,162.27,3.45]
[1754226452039,3.41,162.28,162.21,5.10201896]
[1754226452231,3.41,162.27,162.22,3.45]
[1754226452737,9.5734,162.26,162.22,9.6142]
[1754226453034,113.04,162.27,162.23,3.45]
[1754226453534,116.45,162.27,162.23,3.45]
[1754226453839,122.6129,162.27,162.24,3.45]
[1754226454341,3.41,162.26,162.24,3.45]
[1754226454938,119.2029,162.27,162.24,3.45]
[1754226455342,122.6129,162.27,162.24,3.45]
[1754226456036,3.41,162.26,162.23,3.45]
[1754226457539,3.41,162.25,162.23,3.45]
[1754226458844,9.5734,162.25,162.23,3.45]
[1754226459545,9.5734,162.25,162.22,6.1645]
[1754226459546,112.98,162.27,162.19,5.10201896]
[1754226459742,3.41,162.26,162.2,3.45]
[1754226460335,6.1641,162.24,162.2,6.165]
[1754226460539,112.98,162.27,162.18,5.10201896]
[1754226460744,3.41,162.22,162.2,3.45]
[1754226461141,3.41,162.21,162.2,3.45]
[1754226461535,3.41,162.22,162.2,3.45]
[1754226462943,112.98,162.27,162.2,3.45]
[1754226463248,3.41,162.23,162.2,3.45]
[1754226463545,3.41,162.23,162.21,6.1647]
[1754226463747,3.41,162.23,162.22,3.4]
[1754226464144,116.22,162.24,162.22,3.4]
[1754226464344,3.26,162.25,162.23,3.4]
[1754226464542,1.07256784,162.34,162.23,3.4]
[1754226464543,112.96,162.27,162.23,3.4]
[1754226464745,3.26,162.27,162.23,3.4]
[1754226464938,3.26,162.27,162.2,5.10201896]
[1754226465142,3.26,162.27,162.21,3.4]
[1754226465343,6.1633,162.26,162.21,9.5647]
[1754226465545,3.26,162.25,162.23,3.4]
[1754226465745,3.26,162.24,162.21,6.1647]
[1754226466348,3.26,162.24,162.22,3.4]
[1754226466747,3.26,162.24,162.18,5.10201896]
[1754226466941,3.26,162.24,162.19,3.4]
[1754226467444,3.26,162.22,162.19,3.4]
[1754226468145,3.26,162.24,162.22,3.4]
[1754226469355,113.0,162.27,162.23,3.4]
[1754226469547,3.26,162.27,162.23,3.4]
[1754226470349,3.26,162.26,162.23,3.4]
[1754226470549,6.85806897,162.33,162.23,3.4]
[1754226470758,3.26,162.27,162.25,3.4]
[1754226472653,113.02,162.31,162.22,5.10201896]
[1754226472854,3.26,162.3,162.23,3.4]
[1754226473052,3.26,162.3,162.24,3.4]
[1754226473649,6.1625,162.28,162.24,9.5638]
[1754226473855,3.26,162.27,162.25,3.4]
[1754226474960,6.1625,162.28,162.25,3.4]
[1754226475161,3.26,162.26,162.25,3.4]
[1754226483568,9.4232,162.26,162.21,8.50201896]
[1754226483773,3.26,162.25,162.21,3.4]
[1754226484367,3.26,162.24,162.21,3.4]
[1754226484564,113.0,162.29,162.21,3.4]
[1754226484769,6.1643,162.23,162.2,3.4]
[1754226484965,3.26,162.28,162.18,3.4]
[1754226485764,3.26,162.28,162.2,3.4]
[1754226486274,3.26,162.23,162.21,3.4]
[1754226486964,3.26,162.22,162.2,6.1653]
[1754226487571,3.26,162.22,162.21,3.4]
[1754226489166,9.4242,162.23,162.21,3.4]
[1754226489472,6.1642,162.23,162.21,3.4]
[1754226489772,3.26,162.22,162.21,3.4]
[1754226491575,9.4246,162.22,162.21,3.4]
[1754226492273,3.26,162.22,162.21,3.4]
[1754226495669,3.35,162.24,162.17,3.48]
[1754226496269,3.35,162.18,162.16,3.48]
[1754226496575,112.98,162.25,162.13,5.10201896]
[1754226496576,112.98,162.25,162.13,8.58201896]
[1754226496775,112.98,162.25,162.14,3.48]
[1754226496776,3.35,162.24,162.14,3.48]
[1754226497370,3.35,162.24,162.12,171.54284062]
[1754226497571,3.35,162.24,162.13,3.48]
[1754226497770,3.35,162.23,162.13,3.48]
[1754226497967,6.1667,162.17,162.13,6.1677]
[1754226498179,3.35,162.16,162.14,3.48]
[1754226499173,6.1668,162.16,162.13,6.1677]
[1754226499473,6.1668,162.16,162.09,5.10201896]
[1754226499474,3.35,162.17,162.1,3.48]
[1754226500277,3.35,162.14,162.12,3.48]
[1754226500967,3.35,162.12,162.08,5.10201896]
[1754226501276,3.35,162.12,162.04,161.74977639]
[1754226501277,3.35,162.12,162.07,5.10201896]
[1754226501580,3.35,162.12,162.1,3.48]
[1754226501873,3.35,162.12,162.11,3.48]
[1754226503068,9.5184,162.12,162.11,3.48]
[1754226503467,9.5184,162.12,162.04,161.74977639]
[1754226503468,6.1689,162.11,162.07,6.1702]
[1754226503673,3.35,162.1,162.08,3.48]
[1754226504077,6.1684,162.12,162.08,9.6498]
[1754226504276,3.35,162.11,162.09,3.48]
[1754226504769,3.35,162.11,162.1,3.48]
[1754226504974,3.35,162.12,162.1,3.48]
[1754226506783,3.35,162.11,162.09,3.48]
[1754226508683,3.35,162.11,162.1,3.48]
[1754226509382,3.35,162.11,162.09,3.48]
[1754226510273,3.35,162.13,162.07,6.1702]
[1754226510478,6.1686,162.12,162.08,3.48]
[1754226510674,3.35,162.11,162.08,3.48]
[1754226510879,3.35,162.13,162.05,3.48]
[1754226511085,6.1691,162.1,162.07,3.48]
[1754226511285,3.35,162.09,162.07,3.48]
[1754226511683,113.04,162.14,162.05,3.48]
[1754226511684,3.35,162.13,162.05,3.48]
[1754226511885,3.35,162.13,162.0,3.48]
[1754226512681,3.35,162.03,162.0,3.48]
[1754226512891,3.35,162.02,162.0,3.48]
[1754226513087,113.06,162.07,161.94,3.48]
[1754226513088,3.35,162.06,161.94,3.48]
[1754226513291,3.35,162.01,161.98,3.48]
[1754226513890,113.06,162.07,161.93,113.04]
[1754226514084,3.35,162.06,161.94,3.48]
[1754226514285,3.35,162.06,161.98,3.48]
[1754226514789,3.35,162.04,161.91,3.48]
[1754226515296,6.1718,162.03,161.91,3.48]
[1754226515693,3.35,162.02,161.91,3.48]
[1754226515886,3.35,162.06,161.91,3.48]
[1754226516394,3.35,162.01,161.91,3.48]
[1754226516790,3.35,162.01,161.97,6.174]
[1754226516990,6.1722,162.02,161.98,3.48]
[1754226516991,3.35,162.02,161.98,3.48]
[1754226517195,3.35,162.06,161.98,3.48]
[1754226518190,3.35,162.06,161.9,3.48]
[1754226518395,3.35,162.08,161.9,8.58201896]
[1754226518583,3.35,162.08,161.93,3.48]
[1754226518787,3.35,162.07,162.04,3.48]
[1754226518984,414.5,162.13,162.04,3.48]
[1754226519190,3.35,162.09,162.04,3.48]
[1754226519392,3.35,162.08,162.04,3.48]
[1754226519595,3.35,162.1,162.04,3.48]
[1754226519795,3.35,162.1,162.05,6.1709]
[1754226519988,3.35,162.09,162.06,3.48]
[1754226520290,3.35,162.08,162.06,3.48]
[1754226520897,3.35,162.1,162.07,3.48]
[1754226521399,417.85,162.13,162.08,3.48]
[1754226521598,3.35,162.12,162.08,3.48]
[1754226521988,3.35,162.11,162.08,3.48]
[1754226523699,3.2,162.11,162.07,3.35]
[1754226524911,3.2,162.11,162.08,3.35]
[1754226525305,414.5,162.13,162.08,3.35]
[1754226525306,3.2,162.09,162.08,3.35]
[1754226525706,6.1695,162.09,162.03,6.1715]
[1754226525909,3.2,162.08,162.07,3.35]
[1754226526208,3.2,162.08,162.04,3.35]
[1754226526406,3.2,162.07,162.04,3.35]
[1754226527607,3.2,162.09,162.05,3.35]
[1754226527810,6.1692,162.1,162.05,3.35]
[1754226528009,3.2,162.08,162.05,3.35]
[1754226528504,3.2,162.09,161.96,5.10201896]
[1754226528713,3.2,162.12,161.97,3.35]
[1754226529918,3.2,162.07,162.03,3.35]
[1754226530211,3.2,162.07,161.95,5.10201896]
[1754226530212,3.2,162.07,162.04,3.35]
[1754226530407,9.3706,162.07,162.04,3.35]
[1754226530612,6.1706,162.07,162.04,3.35]
[1754226530807,3.2,162.05,162.04,3.35]
[1754226531316,3.2,162.04,162.02,3.35]
[1754226531911,113.4,162.08,161.99,3.35]
[1754226532208,3.2,162.07,161.99,3.35]
[1754226532410,6.1718,162.03,161.99,3.35]
[1754226532610,3.2,162.07,161.99,3.35]
[1754226533207,3.2,162.02,161.99,3.35]
[1754226533412,3.2,162.07,161.98,3.35]
[1754226533817,6.172,162.03,161.98,3.35]
[1754226534117,3.2,162.01,161.98,3.35]
[1754226534413,3.2,162.01,161.97,3.35]
[1754226535217,3.2,162.01,161.97,6.174]
[1754226535419,3.2,162.01,161.98,3.35]
[1754226537512,9.3726,162.01,161.98,3.35]
[1754226537821,3.2,162.01,161.98,3.35]
[1754226539015,3.2,162.01,161.99,3.35]
[1754226540627,9.3726,162.01,161.97,6.174]
[1754226540922,3.2,162.07,161.92,3.35]
[1754226542423,6.1722,162.02,161.92,8.45201896]
[1754226542626,9.3722,162.02,161.93,3.35]
[1754226542819,6.1722,162.02,161.97,6.1738]
[1754226543116,3.2,162.01,161.98,3.35]
[1754226544424,9.3726,162.01,161.98,3.35]
[1754226544626,3.2,162.0,161.98,3.35]
[1754226545320,3.2,161.99,161.98,3.35]
[1754226546223,3.2,162.07,161.95,3.35]
[1754226546621,6.1738,161.98,161.95,3.35]
[1754226546822,3.2,162.0,161.93,3.35]
[1754226547523,3.2,161.96,161.94,3.35]
[1754226547924,3.2,161.96,161.95,3.35]
[1754226550118,3.2,162.07,161.89,3.35]
[1754226550922,138.76806897,162.08,161.93,6.1753]
[1754226551125,3.2,162.06,161.94,3.35]
[1754226552327,9.3741,161.97,161.94,3.35]
[1754226553034,9.3741,161.97,161.94,6.1751]
[1754226553332,3.2,162.07,161.95,3.35]
[1754226554224,6.1738,161.98,161.95,9.5246]
[1754226554524,9.5238,161.98,161.96,3.17]
[1754226554730,9.5238,161.98,161.97,3.17]
[1754226555131,9.5238,161.98,161.94,6.1749]
[1754226555332,3.35,161.97,161.95,3.17]
[1754226555832,9.5241,161.97,161.95,3.17]
[1754226556134,3.35,162.07,161.92,3.17]
[1754226556321,10.20806897,162.07,161.92,3.17]
[1754226556526,6.1747,161.96,161.92,3.17]
[1754226556725,3.35,161.95,161.92,6.1759]
[1754226556923,3.35,161.95,161.93,3.17]
[1754226558130,131.91,162.08,161.94,3.17]
[1754226558131,9.5241,161.97,161.94,3.17]
[1754226558725,6.1741,161.97,161.94,3.17]
[1754226560135,9.5241,161.97,161.91,3.17]
[1754226560329,3.35,161.99,161.91,3.17]
[1754226560837,6.1741,161.97,161.93,6.1753]
[1754226561139,113.24,162.05,161.86,811.30615432]
[1754226561140,3.35,162.01,161.94,3.17]
[1754226561633,6.1731,162.0,161.96,6.1742]
[1754226561934,3.35,162.01,161.97,3.17]
[1754226562130,3.35,162.01,161.98,6.1736]
[1754226562331,3.35,162.01,161.99,3.17]
[1754226562528,238.36364572,162.02,161.91,5.10201896]
[1754226562837,3.35,162.0,161.98,3.17]
[1754226563931,3.35,162.0,161.97,6.174]
[1754226564130,3.35,161.99,161.98,3.17]
[1754226566041,9.5226,162.01,161.98,3.17]
[1754226566242,3.35,162.0,161.97,6.174]
[1754226566444,3.35,162.0,161.99,3.17]
[1754226566744,3.35,161.99,161.92,3.17]
[1754226568240,3.35,161.99,161.93,3.17]
[1754226569143,6.1739,161.98,161.93,3.17]
[1754226569646,3.35,161.96,161.93,3.17]
[1754226570139,3.35,161.96,161.9,5.10201896]